Cogmind - Beta 9.5 *** ADVENTURER MODE // 2020.04.10 @ 22:05:21 Player: WingedOwl Result: Destroyed by 40-WSL(z) with Zionite Laser-S Performance ------------- Evolutions (3) 1500 Regions Visited (9) 1800 Robots Destroyed (119) 595 Value Destroyed (3317) 3317 Prototype IDs (17) 340 Alien Tech Used (0) 0 Bonus (1779) 1779 TOTAL SCORE: 9331 Bonus ------- High Alert Combat Kills 56 Follower Combat Kills 470 Met Imprinter 300 Was Imprinted 300 Destroyed Z-Imprinter 1000 Friendly Fire -347 Cogmind --------- Core Integrity 0/700 Matter 274/300 Energy 92/100 System Corruption 0% Temperature Cool (9) Movement Hovering (60) Location -7/Deep Caves Parts ------- > --- POWER (1) -------- (None) > --- PROPULSION (3) --- Zionite Glidesys I > --- UTILITY (5) ------ Medium Storage Unit Medium Storage Unit Improved Signal Interpreter > --- WEAPON (4) ------- (None) > --- INVENTORY (12) --- Reinforced Ion Engine Zionite Light DM Reactor Zionite Light DM Reactor Improved Heat Sink Experimental Heat Sink Zionite Biocell (1000) Improved Maneuvering Thrusters Phase Shifter Zionite Weapon Casing Peak State ------------ > --- POWER ------------ Zionite Light DM Reactor > --- PROPULSION ------- Hover Unit Zionite Glidesys I > --- UTILITY ---------- Improved Cooling System Medium Storage Unit Medium Storage Unit Improved Signal Interpreter Zionite Weapon Casing > --- WEAPON ----------- Zionite Laser-S Zionite Phaser-S Zionite Phaser-S KE Penetrator > --- INVENTORY -------- Reinforced Ion Engine Zionite Light DM Reactor Zionite Light DM Reactor Improved Heat Sink Experimental Heat Sink Zionite Biocell Improved Maneuvering Thrusters Phase Shifter Zionite Weapon Casing Zionite Light Carapace Makeshift Shrapnel Gun [Rating: 61] Favorites ----------- Power Reinforced Ion Engine Engine Reinforced Ion Engine Power Core Nuclear Core Reactor Zionite Light DM Reactor Propulsion Light Treads Treads Light Treads Hover Unit Zionite Glidesys I Utility Improved Signal Interpreter Device Advanced Heat Sink Storage Medium Storage Unit Processor Improved Signal Interpreter Protection Hardened Medium Armor Plating Weapon Gatling Laser Energy Gun Gatling Laser Energy Cannon Advanced Beam Cannon Ballistic Gun Gauss Rifle Ballistic Cannon Improved Light Cannon Launcher Advanced EMP Blaster Special Weapon Mining Laser Build | -11 -10 -9 -8 -8 -7 -7 -7 -7 -7 ------- Run | Scr Mat Mat Mat Sto Fac Low Low Zio Dee Slots Evolved 6 | . . 2 2 . 2 . . . . Power . | . . . . . . . . . . Propulsion 1 | . . 1 . . . . . . . Utility 3 | . . . 2 . 1 . . . . Weapon 2 | . . 1 . . 1 . . . . Parts Attached 67 | 7 4 5 9 8 3 2 7 . 22 Power 5 | 1 . 2 . 1 . . . . 1 Engine 3 | 1 . 1 . 1 . . . . . Core 1 | . . 1 . . . . . . . Reactor 1 | . . . . . . . . . 1 Propulsion 15 | 2 . 1 1 3 1 . 1 . 6 Treads 10 | 2 . 1 1 2 1 . 1 . 2 Leg . | . . . . . . . . . . Wheel . | . . . . . . . . . . Hover 5 | . . . . 1 . . . . 4 Flight . | . . . . . . . . . . Utility 19 | 2 2 . 4 . 1 1 2 . 7 Device 6 | 1 . . 1 . 1 1 1 . 1 Storage 4 | 1 . . 1 . . . . . 2 Processor 2 | . 2 . . . . . . . . Hackware . | . . . . . . . . . . Protection 7 | . . . 2 . . . 1 . 4 Artifact . | . . . . . . . . . . Weapon 28 | 2 2 2 4 4 1 1 4 . 8 Energy Gun 10 | 1 . . 1 1 . . 3 . 4 Energy Cannon 1 | . . . 1 . . . . . . Ballistic Gun 8 | 1 1 2 . . . . 1 . 3 Ballistic Cannon 2 | . . . 1 . 1 . . . . Launcher 6 | . . . 1 3 . 1 . . 1 Special Weapon 1 | . 1 . . . . . . . . Impact Weapon . | . . . . . . . . . . Slashing Weapon . | . . . . . . . . . . Piercing Weapon . | . . . . . . . . . . Special Melee Weapon . | . . . . . . . . . . Unidentified Prototypes 9 | . . . 1 1 . . . . 7 Parts Lost 32 | . . . . . . 1 4 . 27 Power 1 | . . . . . . . . . 1 Propulsion 8 | . . . . . . . . . 8 Utility 8 | . . . . . . . 1 . 7 Weapon 15 | . . . . . . 1 3 . 11 Highest Loss Streak 13 | . . . . . . 1 3 . 13 Average Slot Usage (%) 97 | . 100 88 98 100 100 96 99 100 82 Engine 6 | . 14 10 . 8 7 7 7 7 4 Core 1 | . . . 9 . . . . . . Treads 23 | . 28 27 27 27 23 23 23 23 14 Device 11 | . 5 . 6 9 15 15 15 15 6 Storage 8 | . 14 11 9 9 7 7 7 7 9 Processor 7 | . 8 11 9 9 7 7 7 7 7 Protection 7 | . . . 10 9 7 7 6 7 6 Energy Gun 9 | . 14 11 7 8 7 . 14 15 9 Ballistic Gun 5 | . 11 16 9 . . . . 7 10 Ballistic Cannon 5 | . . . 6 9 15 15 4 . . Launcher 6 | . . . 1 9 7 11 9 7 3 Naked Turns . | . . . . . . . . . . Heaviest Build 49 | 14 14 18 38 43 47 49 49 47 48 Greatest Support 68 | 40 40 60 60 60 68 68 68 68 68 Greatest Overweight (x) 9 | . . . . 1 . . . . 9 Average Overweight (x) . | . . . . . . . . . . Largest Inventory Capacity 12 | 6 6 6 8 8 8 8 8 8 12 Average Capacity 7 | 5 6 6 6 8 8 8 8 8 8 Most Carried 12 | 2 4 6 8 8 7 8 8 8 12 Average Carried 7 | . 2 4 6 7 6 7 7 7 7 Final Capacity 12 | 6 6 6 8 8 8 8 8 8 12 Final Carried 9 | 2 4 6 8 8 7 8 7 8 9 Class Distribution -------------------- 25% | Scavenger-Tank 21% | Tank 17% | Mutant 10% | Messiah-Tank 10% | Scavenger-Mutant 8% | Commander-Mutant Dominant Class ---------------- Mutant | -10/Materials Mutant | -9/Materials Tank | -8/Materials Commander-Mutant | -8/Storage Commander-Tank | -7/Factory Tank | -7/Lower Caves Scavenger-Tank | -7/Lower Caves Scavenger-Tank | -7/Zion Messiah-Tank | -7/Deep Caves Resources | -11 -10 -9 -8 -8 -7 -7 -7 -7 -7 ----------- Run | Scr Mat Mat Mat Sto Fac Low Low Zio Dee Matter Collected 2540 | 251 61 215 381 686 35 318 287 . 306 Remotely . | . . . . . . . . . . Salvage Created 3697 | 78 61 565 873 958 35 119 748 . 260 Parts 228 | 5 13 23 70 63 2 4 31 . 17 Haulers Intercepted 10 | . . 1 4 5 . . . . . Recyclers Shooed 6 | 1 . 3 1 1 . . . . . Parts Field Recycled . | . . . . . . . . . . Retrieved Matter . | . . . . . . . . . . Parts Self-Destructed 20 | . . . . . . 4 15 1 . Prevented 5 | . . . . . . . 5 . . Kills | -11 -10 -9 -8 -8 -7 -7 -7 -7 -7 ------- Run | Scr Mat Mat Mat Sto Fac Low Low Zio Dee Combat Hostiles Destroyed 72 | . . 4 16 21 1 5 18 . 7 Guns 29 | . . 4 6 7 . . 5 . 7 Cannons 21 | . . . 7 5 1 4 4 . . AOE 22 | . . . 3 9 . 1 9 . . Classes Destroyed 18 | 2 2 3 4 . . 1 4 . 2 Worker 8 | . . . 3 5 . . . . . Builder 4 | . 1 . 2 1 . . . . . Tunneler 2 | 1 . . 1 . . . . . . Hauler 10 | . . 1 4 5 . . . . . Recycler 8 | 1 . 4 2 1 . . . . . Mechanic 1 | . . . . . . . 1 . . Operator 3 | . . . 2 1 . . . . . Watcher 10 | . 2 3 4 1 . . . . . Swarmer 17 | . . . 6 8 . 2 1 . . Grunt 20 | . . 3 7 6 . . 4 . . Brawler 4 | . . . . . . . 4 . . Duelist 1 | . . . . . . . 1 . . Sentry 15 | . . 1 2 8 1 1 2 . . Hunter 3 | . . . 1 . . 1 1 . . Programmer 1 | . . . . . . . 1 . . Behemoth 1 | . . . . . . 1 . . . Z-Light 5 | . . . . . . . . . 5 Assembled 1 | . . . . . . . . . 1 Thug 4 | . . . . . . . 4 . . Best Kill Streak 11 | 2 2 11 6 5 1 2 9 . 2 Combat Bots Only 9 | . . 2 3 4 1 2 9 . 2 Max Kills in Single Turn 4 | 1 1 2 4 4 1 1 3 . 1 Gunslinging . | . . . . . . . . . . Exploded 4 | . . . 2 4 . 1 3 . . Melee . | . . . . . . . . . . Uniques/NPCs Destroyed 1 | . . . . . . . . . 1 Z-Imprinter (-7/Deep Caves) Combat | -11 -10 -9 -8 -8 -7 -7 -7 -7 -7 -------- Run | Scr Mat Mat Mat Sto Fac Low Low Zio Dee Damage Taken 4997 | . . 93 587 285 50 345 749 . 2888 Core 876 | . . 10 85 60 . 24 113 . 584 Absorbed by Shields . | . . . . . . . . . . Core Remaining (%) 92 | 100 100 97 . 73 . . . . . Volleys Fired 241 | 6 5 29 49 72 2 14 34 . 30 Largest 4 | 2 2 3 3 3 4 4 4 . 4 Hottest 266 | 70 100 90 155 155 199 155 266 . 213 Shots Fired 553 | 12 9 78 125 136 7 44 72 . 70 Gun 326 | 12 8 78 75 51 2 . 31 . 69 Cannon 169 | . . . 43 64 4 28 30 . . Launcher 57 | . . . 7 21 1 16 11 . 1 Special 1 | . 1 . . . . . . . . Kinetic 323 | 6 4 49 85 64 4 28 30 . 53 Thermal 168 | 6 5 29 33 51 2 . 31 . 11 Explosive 42 | . . . 7 19 1 9 5 . 1 Electromagnetic 15 | . . . . 2 . 7 6 . . Phasic 5 | . . . . . . . . . 5 Robot Hit Streak 34 | 10 11 19 34 31 21 26 27 . 14 Robot Miss Streak 4 | 1 1 1 2 3 1 1 1 . 4 Penetration Max 1 | . . . . . . . . . 1 Secondary Targets 5 | . . 1 2 . . . . . 2 Max Gunslinging Chain 1 | . . 1 1 . . . . . 1 Shots Hit Robots 418 | 10 4 60 94 94 7 39 56 . 54 Core Hits 242 | 3 3 22 57 71 3 14 42 . 27 Critical Hits 7 | . . 1 2 2 . . 1 . 1 Critical Kills 3 | . . . 1 . . . 1 . 1 Critical Parts Destroyed 4 | . . 1 1 2 . . . . . Melee Attacks . | . . . . . . . . . . Impact . | . . . . . . . . . . Slashing . | . . . . . . . . . . Piercing . | . . . . . . . . . . Sneak Attacks . | . . . . . . . . . . Combat Hostiles . | . . . . . . . . . . Follow-up Attacks . | . . . . . . . . . . Damage Inflicted 11318 | 111 58 791 2261 3094 134 985 2356 . 1528 Guns 4956 | 111 58 791 901 1013 55 . 628 . 1399 Cannons 2381 | . . . 547 685 64 502 583 . . Explosions 3941 | . . . 793 1376 15 483 1145 . 129 Melee . | . . . . . . . . . . Ramming 40 | . . . 20 20 . . . . . Kinetic 4499 | 61 58 492 1004 685 64 502 583 . 1050 Thermal 2709 | 50 . 299 444 1049 55 . 628 . 184 Explosive 3163 | . . . 793 1140 15 370 716 . 129 Electromagnetic 742 | . . . . 200 . 113 429 . . Impact . | . . . . . . . . . . Slashing . | . . . . . . . . . . Piercing . | . . . . . . . . . . Phasic 165 | . . . . . . . . . 165 Highest Corruption . | . . . . . . . . . . Average Corruption . | . . . . . . . . . . Corruption Purged . | . . . . . . . . . . Overload Shots . | . . . . . . . . . . Overflow Damage 137 | . . . 25 50 . . 36 . 26 Projectiles 12 | . . . . 12 . . . . . Explosions 125 | . . . 25 38 . . 36 . 26 Melee . | . . . . . . . . . . Knockbacks 10 | . . . 2 2 . . 6 . . Impact . | . . . . . . . . . . Kinetic 9 | . . . 2 2 . . 5 . . Secondary 1 | . . . . . . . 1 . . Self-Inflicted Damage 4 | . . . . 4 . . . . . Shots 2 | . . . . 2 . . . . . Rammed 4 | . . . 2 2 . . . . . Targets Rammed 5 | . . . 3 2 . . . . . Kicked . | . . . . . . . . . . Crushed 1 | . . . 1 . . . . . . Highest Temperature 396 | 54 20 141 396 149 8 35 160 . 277 Average Temperature 82 | 28 8 54 141 42 8 23 60 . 89 Received Heat Transfer 2025 | . . 63 342 180 18 81 279 . 1062 Effects 7 | . . . 7 . . . . . . Shutdowns 3 | . . . 3 . . . . . . Energy Bleed 4 | . . . 4 . . . . . . Siege Activations . | . . . . . . . . . . Robots Corrupted . | . . . . . . . . . . Combat Hostiles . | . . . . . . . . . . Parts Fried . | . . . . . . . . . . Impact Corruptions . | . . . . . . . . . . Robots Melted . | . . . . . . . . . . Combat Hostiles . | . . . . . . . . . . Parts Melted 3 | . . . . 1 . . 2 . . Heat Transferred 6036 | 148 . 888 981 2375 125 . 1294 . 225 Parts Sabotaged . | . . . . . . . . . . Parts Stolen . | . . . . . . . . . . Parts Stripped . | . . . . . . . . . . Power Chain Reactions 2 | . . . . 1 . 1 . . . Missiles Intercepted . | . . . . . . . . . . Alert | -11 -10 -9 -8 -8 -7 -7 -7 -7 -7 ------- Run | Scr Mat Mat Mat Sto Fac Low Low Zio Dee Peak Influence 696 | 10 54 244 345 696 264 . . . . Average Influence 219 | 4 27 90 113 385 239 . . . . Maximum Alert Level 2 | . . 1 1 2 1 . . . . Low Security (%) 60 | 100 100 81 84 28 . . . . . Level 1 19 | . . 18 15 21 100 . . . . Level 2 20 | . . . . 49 . . . . . Level 3 . | . . . . . . . . . . Level 4 . | . . . . . . . . . . Level 5 . | . . . . . . . . . . High Security . | . . . . . . . . . . Max Security . | . . . . . . . . . . Squads Dispatched 10 | . . 1 3 4 1 . 1 . . Investigation 4 | . . . 1 3 . . . . . Extermination . | . . . . . . . . . . Reinforcement 5 | . . 1 2 1 1 . . . . Assault 1 | . . . . . . . 1 . . Garrison . | . . . . . . . . . . Intercept . | . . . . . . . . . . Construction Impeded . | . . . . . . . . . . Haulers Reinforced . | . . . . . . . . . . Stealth | -11 -10 -9 -8 -8 -7 -7 -7 -7 -7 --------- Run | Scr Mat Mat Mat Sto Fac Low Low Zio Dee Distress Signals 9 | . . 3 3 3 . . . . . Communications Jammed . | . . . . . . . . . . Distress Signals . | . . . . . . . . . . Times Spotted 115 | . 3 13 26 34 1 6 17 . 15 Peak Tracking Total 9 | . 1 3 4 5 1 3 9 . 6 Tactical Retreats 7 | . . . 3 2 . . 2 . . Traps | -11 -10 -9 -8 -8 -7 -7 -7 -7 -7 ------- Run | Scr Mat Mat Mat Sto Fac Low Low Zio Dee Traps Triggered 5 | . . . 2 1 . . 2 . . Indirectly 2 | . . . . . . . 2 . . Trap Hack Attempts . | . . . . . . . . . . Triggered . | . . . . . . . . . . Disarmed . | . . . . . . . . . . Reprogrammed . | . . . . . . . . . . Reused . | . . . . . . . . . . Traps Extracted . | . . . . . . . . . . Installed . | . . . . . . . . . . Triggered . | . . . . . . . . . . Machines | -11 -10 -9 -8 -8 -7 -7 -7 -7 -7 ---------- Run | Scr Mat Mat Mat Sto Fac Low Low Zio Dee Machines Disabled 14 | . . . 3 8 . . 2 . 1 Max in Single Turn 2 | . . . 2 1 . . 1 . . Machines Sabotaged . | . . . . . . . . . . Garrisons Compromised . | . . . . . . . . . . Overloaded Fab Kills . | . . . . . . . . . . Fab Network Shutdowns . | . . . . . . . . . . Hacking | -11 -10 -9 -8 -8 -7 -7 -7 -7 -7 --------- Run | Scr Mat Mat Mat Sto Fac Low Low Zio Dee Machines Accessed 25 | . 1 4 6 13 . 1 . . . Terminals 22 | . 1 3 6 12 . . . . . Fabricators . | . . . . . . . . . . Repair Stations . | . . . . . . . . . . Recycling Units 2 | . . 1 . 1 . . . . . Scanalyzers . | . . . . . . . . . . Garrison Access . | . . . . . . . . . . Total Hacks 86 | . 1 16 23 45 . 1 . . . Successful 61 | . . 13 17 30 . 1 . . . Failed 25 | . 1 3 6 15 . . . . . Catastrophic 4 | . . . 2 2 . . . . . Database Lockouts . | . . . . . . . . . . Manual 75 | . 1 13 21 36 . . . 4 . Terminals 81 | . 1 15 23 42 . . . . . Fabricators . | . . . . . . . . . . Repair Stations . | . . . . . . . . . . Recycling Units 4 | . . 1 . 3 . . . . . Scanalyzers . | . . . . . . . . . . Garrison Access . | . . . . . . . . . . Terminal Hacks 22 | . . 4 6 11 . 1 . . . Prototype ID Bank 4 | . . . 3 1 . . . . . Open Door 3 | . . . . 2 . 1 . . . Branch Access Points 3 | . . 1 1 1 . . . . . Emergency Access Points 2 | . . 1 1 . . . . . . Terminal Index 1 | . . . . 1 . . . . . Alert Level 2 | . . . . 2 . . . . . Unreport Threat 1 | . . . . 1 . . . . . Garrison Status 1 | . . . . 1 . . . . . Recall Investigation 1 | . . 1 . . . . . . . Recall Reinforcements 2 | . . . 1 1 . . . . . Zone Layout 2 | . . 1 . 1 . . . . . Fabricator Hacks . | . . . . . . . . . . Repair Station Hacks . | . . . . . . . . . . Recycling Unit Hacks 2 | . . 1 . 1 . . . . . Report Inventory 2 | . . 1 . 1 . . . . . Scanalyzer . | . . . . . . . . . . Garrison Access Hacks . | . . . . . . . . . . Unauthorized Hacks 84 | . . 17 24 43 . . . . . Terminals 37 | . . 8 11 18 . . . . . Track 12 | . . 2 3 7 . . . . . Assimilate 1 | . . 1 . . . . . . . Botnet 20 | . . 3 6 11 . . . . . Detonate 1 | . . . 1 . . . . . . Operators 3 | . . 2 1 . . . . . . Fabricators . | . . . . . . . . . . Repair Stations . | . . . . . . . . . . Recycling Units . | . . . . . . . . . . Scanalyzers . | . . . . . . . . . . Garrison Access . | . . . . . . . . . . Data Cores Recovered . | . . . . . . . . . . Used . | . . . . . . . . . . Hacking Detections 22 | . 1 3 6 12 . . . . . Full Trace Events 3 | . . . 1 2 . . . . . Feedback Events . | . . . . . . . . . . Feedback Blocked . | . . . . . . . . . . Robot Schematics Acquired . | . . . . . . . . . . Robots Built . | . . . . . . . . . . Matter . | . . . . . . . . . . Time . | . . . . . . . . . . Total Robot Build Rating . | . . . . . . . . . . Part Schematics Acquired . | . . . . . . . . . . Parts Built . | . . . . . . . . . . Matter . | . . . . . . . . . . Time . | . . . . . . . . . . Total Part Build Rating . | . . . . . . . . . . Parts Repaired . | . . . . . . . . . . Time . | . . . . . . . . . . Parts Recycled . | . . . . . . . . . . Recycled Matter . | . . . . . . . . . . Retrieved Matter . | . . . . . . . . . . Retrieved Components . | . . . . . . . . . . Parts Scanalyzed . | . . . . . . . . . . Part Schematics Acquired . | . . . . . . . . . . Parts Damaged . | . . . . . . . . . . Bothacking | -11 -10 -9 -8 -8 -7 -7 -7 -7 -7 ------------ Run | Scr Mat Mat Mat Sto Fac Low Low Zio Dee Used RIF Installer . | . . . . . . . . . . Robots Hacked . | . . . . . . . . . . Non-combat . | . . . . . . . . . . Combat . | . . . . . . . . . . Robot Hacks Applied . | . . . . . . . . . . Relay Couplers Released . | . . . . . . . . . . Robots Rewired 2 | . . . . . . . 2 . . Allies Hacked . | . . . . . . . . . . Hacks Repelled . | . . . . . . . . . . Allies | -11 -10 -9 -8 -8 -7 -7 -7 -7 -7 -------- Run | Scr Mat Mat Mat Sto Fac Low Low Zio Dee Total Allies 20 | . . 1 . 10 . . 2 7 . Largest Group 10 | . . 1 1 10 4 4 2 7 3 Highest-Rated Group 232 | . . 10 10 173 77 77 48 232 76 Highest-Rated Ally 41 | . . 10 10 29 29 29 32 41 28 Total Orders 9 | . . . . 8 1 . . . . STAY 1 | . . . . 1 . . . . . FOLLOW 2 | . . . . 2 . . . . . EXPLORE 6 | . . . . 5 1 . . . . Ally Attacks 166 | . . . . 98 2 13 9 . 44 Total Damage 2596 | . . . . 1279 20 142 270 . 885 Kills 27 | . . . . 14 . 2 2 . 9 Allies Corrupted . | . . . . . . . . . . Allies Melted . | . . . . . . . . . . Intel | -11 -10 -9 -8 -8 -7 -7 -7 -7 -7 ------- Run | Scr Mat Mat Mat Sto Fac Low Low Zio Dee Robot Analysis Total . | . . . . . . . . . . Derelict Logs Recovered 6 | . . . . . . 3 2 1 . Drone Launches 16 | . . . . 16 . . . . . Drone Recoveries . | . . . . . . . . . . Exploration | -11 -10 -9 -8 -8 -7 -7 -7 -7 -7 ------------- Run | Scr Mat Mat Mat Sto Fac Low Low Zio Dee Turns Passed 8938 | 96 187 476 1228 1474 100 1133 1447 1928 869 Spaces Moved 4942 | 43 103 227 647 745 50 664 809 1183 471 Core 9 | 2 . . . . . . . . 7 Treads 4798 | 41 103 227 647 745 50 664 809 1183 329 Legs . | . . . . . . . . . . Wheels . | . . . . . . . . . . Hover 135 | . . . . . . . . . 135 Flight . | . . . . . . . . . . Fastest Speed 50 | 50 160 160 160 163 163 163 163 163 60 Average Speed 161 | 154 160 160 160 163 163 163 163 163 155 Slowest Speed 500 | 160 160 160 163 185 163 163 163 163 500 Overloaded Moves . | . . . . . . . . . . Propulsion Burnouts . | . . . . . . . . . . Robots Hopped . | . . . . . . . . . . Cave-ins Triggered . | . . . . . . . . . . Exploration Rate (%) 49 | 4 20 18 48 96 11 78 85 91 45 Regions Visited 9 Branch Regions 5 Pre-discovered Areas 2 | . . . . 1 . . . 1 . Known Exits Taken 8 | . 1 1 1 1 1 1 1 1 . Unknown Exits Taken 1 | 1 . . . . . . . . . Scrap Searched 5 | . . . . . . 2 2 1 . Spaces Dug 1 | . 1 . . . . . . . . Terrain Destroyed 246 | . 1 . 51 136 14 29 14 . 1 Melee . | . . . . . . . . . . Projectile 5 | . 1 . . 3 . . . . 1 AOE 241 | . . . 51 133 14 29 14 . . Actions | -11 -10 -9 -8 -8 -7 -7 -7 -7 -7 --------- Run | Scr Mat Mat Mat Sto Fac Low Low Zio Dee Total 5372 | 57 113 280 729 862 63 681 868 1183 536 Wait 37 | . . 2 8 17 9 1 . . . Move 4933 | 42 102 226 646 744 49 663 808 1182 471 Hop . | . . . . . . . . . . Pick Up 34 | 2 1 9 6 2 . 1 2 1 10 Fast Attach 31 | 7 1 2 4 4 . . 3 . 10 Attach 17 | . . 1 2 . 2 1 2 . 9 Detach 2 | . 1 . . . . . . . 1 Swap 19 | . 3 2 3 4 1 1 2 . 3 Drop 28 | . . 9 8 7 . . 3 . 1 Fire 241 | 6 5 29 49 72 2 14 34 . 30 Melee . | . . . . . . . . . . Ram . | . . . . . . . . . . Kick . | . . . . . . . . . . Crush 5 | . . . 3 2 . . . . . Escape Stasis . | . . . . . . . . . . Rewire 17 | . . . . 2 . . 14 . 1 Trap . | . . . . . . . . . . Miscellaneous 8 | . . . . 8 . . . . . Route ------- -11/Scrapyard -10/Materials -9/Materials (discovered 2 exits: *Mat / Min) -8/Materials (discovered 2 exits: *Fac / *Sto) -8/Storage (discovered 2 exits: *Fac / Rec) -7/Factory -7/Lower Caves -7/Lower Caves (discovered 2 exits: *Fac / *Zio) -7/Zion (discovered 2 exits: *Dee / *Pro) -7/Deep Caves History --------- Turn | Location | Event 20 | -11/Scrapyard | Discovered new exit (range 15) 97 | -11/Scrapyard | Entered Materials 262 | -10/Materials | Discovered new exit (range 9) 283 | -10/Materials | Identified exit to Materials 284 | -10/Materials | Entered another Materials area 284 | -9/Materials | Evolved 2 slots: Propulsion x1, Weapon x1 316 | -9/Materials | Build established: Mutant 708 | -9/Materials | Discovered new exit (range 12) 708 | -9/Materials | Identified exit to Mines 757 | -9/Materials | Identified exit to Materials 760 | -9/Materials | Entered another Materials area 760 | -8/Materials | Accompanied by 1 ally 760 | -8/Materials | Evolved 2 slots: Utility x2 1475 | -8/Materials | Identified exit to Storage 1476 | -8/Materials | Build established: Tank 1880 | -8/Materials | Discovered new exit (range 16) 1906 | -8/Materials | Identified exit to Factory 1988 | -8/Materials | Entered Storage 2341 | -8/Storage | Identified exit to Recycling 2486 | -8/Storage | Assisted by bots powering up and referring to "LRC-V3" 2555 | -8/Storage | Learned location of Armory (-3) 2779 | -8/Storage | Build established: Commander-Mutant 2910 | -8/Storage | Discovered exit to Factory (range 16) 3462 | -8/Storage | Entered Factory 3462 | -7/Factory | Accompanied by 10 allies 3462 | -7/Factory | Evolved 2 slots: Utility x1, Weapon x1 3524 | -7/Factory | Discovered new exit (range 13) 3550 | -7/Factory | Identified exit to Lower Caves 3562 | -7/Factory | Entered Lower Caves 3562 | -7/Lower Caves | Accompanied by 4 allies 3621 | -7/Lower Caves | Encountered a Warlord checkpoint 3652 | -7/Lower Caves | Learned 4 Factory zone layouts 3657 | -7/Lower Caves | Attracted the attention of an 0b10 checkpoint 3792 | -7/Lower Caves | Learned Factory interactive machine intel 3861 | -7/Lower Caves | Build established: Mutant 4015 | -7/Lower Caves | Spotted B-75 Beast 4043 | -7/Lower Caves | Destroyed B-75 Beast 4330 | -7/Lower Caves | Build established: Tank 4503 | -7/Lower Caves | Learned location of 1 exit from Factory 4511 | -7/Lower Caves | Discovered new exit (range 5) 4516 | -7/Lower Caves | Identified exit to Lower Caves 4695 | -7/Lower Caves | Entered another Lower Caves area 4761 | -7/Lower Caves | Discovered new exit (range 7) 4769 | -7/Lower Caves | Identified exit to Factory 4984 | -7/Lower Caves | Attracted the attention of an 0b10 outpost 5028 | -7/Lower Caves | Destroyed 9 combat bots 5051 | -7/Lower Caves | Rewired Cogmind 5052 | -7/Lower Caves | Rewired Cogmind 5090 | -7/Lower Caves | P-60 Hacker assimilated allied Guardian 4a 5126 | -7/Lower Caves | Encountered a Warlord checkpoint 5130 | -7/Lower Caves | Learned Factory security intel 5133 | -7/Lower Caves | Learned 4 Factory zone layouts 5192 | -7/Lower Caves | Ambushed by wild Derelicts 5238 | -7/Lower Caves | Lost 3 parts (1u2w) 5624 | -7/Lower Caves | Build established: Scavenger-Tank 6093 | -7/Lower Caves | Discovered new exit (range 9) 6106 | -7/Lower Caves | Identified exit to Zion 6142 | -7/Lower Caves | Entered Zion 6344 | -7/Zion | Discovered new exit (range 14) 6364 | -7/Zion | Identified exit to Proximity Caves 6509 | -7/Zion | Acquired unknown access codes intercepted by a Zionite 7033 | -7/Zion | Gained Derelict followers 7154 | -7/Zion | Learned Factory garrison access intel 7529 | -7/Zion | Imprinted 7531 | -7/Zion | Declared Zion's savior 7703 | -7/Zion | Opened final containment barrier to the Deep Caves 7828 | -7/Zion | Build established: Messiah-Tank 8057 | -7/Zion | Discovered new exit (range 3) 8057 | -7/Zion | Saw the warning signs outside the Deep Caves entrance 8064 | -7/Zion | Identified exit to Deep Caves 8070 | -7/Zion | Entered Deep Caves 8070 | -7/Deep Caves | Accompanied by 7 allies 8476 | -7/Deep Caves | Attacked by Z-Imprinter 8496 | -7/Deep Caves | Z-Facility disabled 8521 | -7/Deep Caves | Core integrity fell below 50% 8537 | -7/Deep Caves | Destroyed Z-Imprinter 8561 | -7/Deep Caves | Found Prototype Protection 8561 | -7/Deep Caves | Identified Zio. Weapon Casing 8564 | -7/Deep Caves | Lost 10 parts (3n2u5w) 8592 | -7/Deep Caves | Found Zio. Weapon Casing 8723 | -7/Deep Caves | Lost 3 parts (2n1u) 8868 | -7/Deep Caves | Build established: Scavenger-Mutant 8929 | -7/Deep Caves | Core integrity fell below 20% 8939 | -7/Deep Caves | Destroyed by 40-WSL(z) with Zionite Laser-S Last Messages --------------- 08919_ Slug penetrates 4B-P49(z). 08919_ Zio. Phaser-S destroyed. 08921_ TA-JS8(z) knocked back. 08923_ TA-JS8(z) heat damages Zio. Weapon Casing. 08924_ Zio. Laser-S destroyed. 08925_ Slug penetrates VF-RGV(z). 08925_ VF-RGV(z) destroyed. 08925_ Switching to secondary target: TA-JS8(z). 08926_ Zio. Light Carapace destroyed. 08927_ TA-JS8(z) heat spikes uncontrollably. 08927_ KE Penetrator destroyed. 08933_ 1A-COY(z) heat damages Zio. Weapon Casing. 08933_ Acquired Zio. Glidesys I. 08933_ Imp. Cooling System destroyed. 08934_ Zio. Light DM Reactor destroyed. 08935_ Mak. Shrapnel Gun destroyed. 08935_ Acquired Zio. Glidesys I. 08935_ Zio. Glidesys I destroyed. 08936_ VY-ZL1(b) destroyed. 08938_ 1A-COY(z) overheating. Map ----- +----------------------------------------------------+ | | | | | | | | | | | | | | | | | | | | | | | | | | | | | | | | | | | | | | | | | | | ????????????????????####?????????????????????????? | | ????????????????????# #???################??????? | | ????????????????????# #?#;## ##?????? | | ????????????????????# ### #????## | | ???????????????##???#[###@ ###### | | ???????????????# ??#!"; ## # | | ?????? # ## ##%!! | | ?????? !z! ! | | ?????? i%! | | ?????? /= | | ?????? z% | | ??????? zz """"" """""" | | ??????? """""""""""""" | | ???????? """""""""""""" | | ???????? """""""""""""" | | ???????? """"""""""" | | ????????? """?"""""""""" | | ????????? ""???"""""""" | | ?????????? ""??"""""""""" | | ?????????? "???"""""""""" | | ???????????? "???""""" " " | | ?????????????? ??""""""" | | ????????????????? ??"""""" | | ??????????????????? ???""""""" | | ????????????????????????????""""""% | | ???????????????????????? ???""""""""" | | ?????????????????? ???"""""""""" | | ???????????????? "??""" | | ????????????? "??""" """ | +----------------------------------------------------+ Best States ------------- Heat Dissipation 67 Energy Generation 27 Energy Capacity 1265 Matter Stores 300 Matter Capacity 300 Sight Range 16 Terrain Scan Range 16 Terrain Scan Density 10 Base Temperature (-) 100 Armor Coverage 450 Resistance: KI 20 Resistance: TH 20 Resistance: EX 20 Resistance: EM 20 Resistance: I 20 Resistance: S 20 Resistance: P 20 Weapon Shielding 100 Evasion (%) 40 Recoil Reduction 3 Offensive Hacking 10 Item Schematics ----------------- None Robot Schematics ------------------ None Fabricated ------------ Nothing Alien Tech Used ----------------- None Achievements -------------- Are We The Baddies? Challenges ------------ None Game ------ Seed TeslaHugeBlade Manual? 0 Play Time 01:18:45 Cumulative 137.8 hours Start 2020.04.09 @ 21:49:40 End 2020.04.10 @ 22:05:21 Sessions 2 Manual Loads 0 Difficulty Adventurer Special Mode None Game No. 171 Rogue 152 Adventurer 19 Explorer 0 Win Type - Total 0 Types 0/0/0/0/0/0/0 Lore% 56 Gallery% 66 Achievement% 44 Wizard Run 0 Options --------- ASCII 0 Keyboard 1 Movement Arrows Keybinds 0 Fullscreen 1 Font 32/SmallcapsGlow Map View 76x50 Tactical HUD 1 Map Filters NONE Filters NONE Steam 1 RUN: 24b015a2-1bce-4091-9ea3-14090977a910